[Event "Polish Youth G18 Championship 2023"]
[Site "Jastrzebia Gora"]
[Date "2023.03.14"]
[Round "4.14"]
[White "Anyz, Monika"]
[Black "Samol, Julia"]
[Result "1-0"]
[ECO "C55"]
[WhiteElo "1755"]
[BlackElo "1374"]
[Annotator "NA RC COMBH"]
[PlyCount "73"]
[EventDate "2023.03.11"]
[EventType "swiss"]
[EventCountry "POL"]
[SourceTitle "playchess.com"]
[Source "ChessBase"]
[SourceQuality "1"]
[TimeControl "40/5400+30:1800+30"]

1. e4 {[%emt 0:00:03]} e5 {[%emt 0:00:17]} 2. Nf3 {[%emt 0:00:05]} Nc6 {[%emt 0:00:03]} 3. d4 {[%emt 0:00:08]} exd4 {[%emt 0:00:04]} 4. Bc4 {[%emt 0:00:06]} Nf6 {[%emt 0:00:29]} 5. e5 {[%emt 0:00:08]} d5 {[%emt 0:00:30]} 6. Bb5 {[%emt 0:00:07]} Ne4 {[%emt 0:00:35]} 7. Nxd4 {[%emt 0:00:36]} Bc5 {[%emt 0:00:55]} 8. Bxc6+ {[%emt 0:02:35]} bxc6 {[%emt 0:00:16]} 9. O-O {[%emt 0:01:00]} O-O {[%emt 0:07:56]} 10. Be3 {[%emt 0:24:41]} Bb6 {[%emt 0:25:19]} 11. Nxc6 {[%emt 0:08:22]} Qd7 {[%emt 0:00:21]} 12. Qxd5 {[%emt 0:06:10]} Qxd5 {[%emt 0:09:34]} 13. Ne7+ {[%emt 0:00:06]} Kh8 {[%emt 0:00:02]} 14. Nxd5 {[%emt 0:00:09]} Bxe3 {[%emt 0:07:18]} 15. Nxe3 {[%emt 0:00:15]} Rb8 {[%emt 0:00:15]} 16. b3 {[%emt 0:00:34]} Rd8 {[%emt 0:06:45]} 17. f3 {[%emt 0:01:53]} Nc5 {[%emt 0:01:13]} 18. Nc3 {[%emt 0:00:40]} Be6 {[%emt 0:03:06]} 19. Rad1 {[%emt 0:01:45]} a6 {[%emt 0:03:38]} 20. Kf2 {[%emt 0:05:26]} Kg8 {[%emt 0:00:27]} 21. Ncd5 {[%emt 0:01:34]} Rd7 {[%emt 0:01:37]} 22. Nf4 {[%emt 0:04:13]} Rbd8 {[%emt 0:00:49]} 23. b4 {[%emt 0:02:55]} Na4 {[%emt 0:03:23]} 24. Nxe6 {[%emt 0:02:01]} fxe6 {[%emt 0:00:35]} 25. Rxd7 {[%emt 0:00:14]} Rxd7 {[%emt 0:00:03]} 26. Rd1 {[%emt 0:00:15]} Rxd1 {[%emt 0:01:38]} 27. Nxd1 {[%emt 0:00:06]} Kf7 {[%emt 0:00:04]} 28. Ke3 {[%emt 0:01:50]} Ke7 {[%emt 0:01:24]} 29. c4 {[%emt 0:01:36]} Nb6 {[%emt 0:01:55]} 30. Kd4 {[%emt 0:00:44]} Nd7 {[%emt 0:01:01]} 31. Nc3 {[%emt 0:01:53]} Kd8 {[%emt 0:01:32]} 32. Na4 {[%emt 0:01:18]} Nb8 {[%emt 0:00:44]} 33. b5 {[%emt 0:02:45]} axb5 {[%emt 0:00:32]} 34. cxb5 {[%emt 0:00:07]} Ke7 {[%emt 0:01:36]} 35. Nc5 {[%emt 0:00:34]} c6 {[%emt 0:01:18]} 36. b6 {[%emt 0:00:07]} h5 {[%emt 0:01:59]} 37. a4 {[%emt 0:00:11]} 1-0

[Event "Polish Youth G18 Championship 2023"]
[Site "Jastrzebia Gora"]
[Date "2023.03.14"]
[Round "4.15"]
[White "Obrochta, Lena"]
[Black "Olszewska, Wiktoria"]
[Result "1-0"]
[ECO "B58"]
[WhiteElo "1673"]
[BlackElo "1287"]
[Annotator "NA RC COMBH"]
[PlyCount "59"]
[EventDate "2023.03.11"]
[EventType "swiss"]
[EventCountry "POL"]
[SourceTitle "playchess.com"]
[Source "ChessBase"]
[SourceQuality "1"]
[TimeControl "40/5400+30:1800+30"]

1. e4 c5 2. Nf3 d6 3. d4 cxd4 4. Nxd4 Nf6 5. Nc3 Nc6 6. Be2 Bd7 7. Nb3 a6 8. a4 e6 9. f4 Be7 10. O-O O-O 11. Kh1 Rc8 12. a5 Nb4 13. Bd3 Qe8 14. Be3 Nxd3 15. cxd3 Bc6 16. Nd4 d5 17. e5 Nd7 18. Rf3 Bc5 19. Rg3 Kh8 20. Qg4 Rg8 21. Rh3 Nf8 22. Nce2 Bb5 23. Bd2 Bxd4 24. Nxd4 Qe7 25. Re1 Qc5 26. Bc3 b6 27. f5 exf5 28. Nxf5 Rc6 29. Bb4 Qc2 30. Bxf8 1-0

[Event "Polish Youth G18 Championship 2023"]
[Site "Jastrzebia Gora"]
[Date "2023.03.14"]
[Round "4.16"]
[White "Pietrzak, Emilia"]
[Black "Trybus, Dominika"]
[Result "1/2-1/2"]
[ECO "B14"]
[WhiteElo "1424"]
[BlackElo "1543"]
[Annotator "NA RC COMBH"]
[PlyCount "111"]
[EventDate "2023.03.11"]
[EventType "swiss"]
[EventCountry "POL"]
[SourceTitle "playchess.com"]
[Source "ChessBase"]
[SourceQuality "1"]
[TimeControl "40/5400+30:1800+30"]

1. e4 {[%emt 0:03:50]} c6 {[%emt 0:00:07]} 2. d4 {[%emt 0:00:07]} d5 {[%emt 0:00:05]} 3. exd5 {[%emt 0:00:05]} cxd5 {[%emt 0:00:05]} 4. c4 {[%emt 0:00:06]} Nf6 {[%emt 0:00:28]} 5. Nc3 {[%emt 0:00:08]} e6 6. Nf3 {[%emt 0:00:19]} Bd6 {[%emt 0:01:39]} 7. cxd5 {[%emt 0:00:51]} Nxd5 {[%emt 0:01:56]} 8. Nxd5 {[%emt 0:03:43]} exd5 {[%emt 0:00:09]} 9. Bd3 {[%emt 0:01:03]} Bg4 {[%emt 0:02:02]} 10. O-O {[%emt 0:06:14]} O-O 11. Be2 Nc6 {[%emt 0:05:53]} 12. Be3 {[%emt 0:18:45]} Qc7 {[%emt 0:02:48]} 13. h3 {[%emt 0:03:09]} Bh5 {[%emt 0:01:58]} 14. Rc1 {[%emt 0:05:08]} Rfe8 {[%emt 0:05:46]} 15. Nh4 {[%emt 0:06:46]} Bxe2 {[%emt 0:01:31]} 16. Qxe2 {[%emt 0:00:02]} Re4 {[%emt 0:10:28]} 17. Nf5 {[%emt 0:09:38]} Bf8 {[%emt 0:00:40]} 18. Ng3 {[%emt 0:01:09]} Re6 {[%emt 0:00:51]} 19. Qd3 {[%emt 0:01:41]} g6 {[%emt 0:07:08]} 20. Ne2 {[%emt 0:01:26]} Qd7 {[%emt 0:04:35]} 21. Nf4 {[%emt 0:01:40]} Re4 {[%emt 0:05:40]} 22. f3 {[%emt 0:05:26]} Re7 {[%emt 0:02:57]} 23. Rc5 {[%emt 0:05:29]} Rxe3 {[%emt 0:06:47]} 24. Qxe3 {[%emt 0:01:07]} Bxc5 {[%emt 0:00:07]} 25. dxc5 {[%emt 0:00:02]} d4 {[%emt 0:02:12]} 26. Qd2 {[%emt 0:07:16]} Re8 {[%emt 0:02:11]} 27. Nd3 {[%emt 0:01:21]} Qf5 {[%emt 0:02:42]} 28. Re1 {[%emt 0:08:33]} Rxe1+ {[%emt 0:00:22]} 29. Nxe1 {[%emt 0:00:14]} Qxc5 {[%emt 0:00:14]} 30. Nd3 {[%emt 0:00:46]} Qe7 {[%emt 0:02:58]} 31. Kf1 {[%emt 0:01:11]} Qe6 {[%emt 0:02:38]} 32. b3 {[%emt 0:01:07]} Qd6 {[%emt 0:07:04]} 33. Kf2 {[%emt 0:02:14]} b6 {[%emt 0:07:01]} 34. Qe2 {[%emt 0:02:32]} Ne7 {[%emt 0:01:36]} 35. Qe4 {[%emt 0:01:07]} Nf5 {[%emt 0:02:29]} 36. Qe8+ {[%emt 0:01:09]} Kg7 {[%emt 0:00:55]} 37. Qe5+ {[%emt 0:01:00]} Qxe5 {[%emt 0:00:47]} 38. Nxe5 {[%emt 0:00:02]} Kf6 {[%emt 0:00:28]} 39. Nc6 {[%emt 0:00:40]} d3 {[%emt 0:02:35]} 40. Nxa7 {[%emt 0:00:00]} Ke5 {[%emt 0:00:00]} 41. g4 {[%emt 0:08:25]} d2 {[%emt 0:06:10]} 42. Ke2 {[%emt 0:00:35]} Nd4+ {[%emt 0:00:14]} 43. Kxd2 {[%emt 0:00:22]} Nxf3+ {[%emt 0:00:13]} 44. Ke3 {[%emt 0:00:49]} Nd4 {[%emt 0:02:11]} 45. Nc8 {[%emt 0:02:02]} b5 {[%emt 0:00:34]} 46. Nb6 {[%emt 0:00:57]} Nc2+ {[%emt 0:03:20]} 47. Kd2 {[%emt 0:01:54]} Nb4 {[%emt 0:01:13]} 48. a3 {[%emt 0:00:49]} Nc6 {[%emt 0:01:30]} 49. Ke3 {[%emt 0:01:08]} Ne7 {[%emt 0:04:21]} 50. Nd7+ {[%emt 0:02:10]} Kd6 {[%emt 0:00:17]} 51. Nf6 {[%emt 0:01:32]} h6 {[%emt 0:02:50]} 52. Ke4 {[%emt 0:03:57]} Ke6 {[%emt 0:00:47]} 53. Ne8 {[%emt 0:01:05]} Kd7 {[%emt 0:03:44]} 54. Nf6+ {[%emt 0:00:20]} Ke6 {[%emt 0:00:20]} 55. Ne8 {[%emt 0:00:16]} Kd7 {[%emt 0:00:24]} 56. Nf6+ {[%emt 0:00:25]} 1/2-1/2

[Event "Polish Youth G18 Championship 2023"]
[Site "Jastrzebia Gora"]
[Date "2023.03.14"]
[Round "4.17"]
[White "Dallemura, Anna"]
[Black "Pietruszka, Julia"]
[Result "1-0"]
[ECO "C65"]
[WhiteElo "1496"]
[BlackElo "1151"]
[Annotator "NA RC COMBH"]
[PlyCount "73"]
[EventDate "2023.03.11"]
[EventType "swiss"]
[EventCountry "POL"]
[SourceTitle "playchess.com"]
[Source "ChessBase"]
[SourceQuality "1"]
[TimeControl "40/5400+30:1800+30"]

1. e4 e5 2. Nf3 Nc6 3. Bb5 Nf6 4. d3 Bc5 5. O-O d6 6. c3 a6 7. Ba4 b5 8. Bc2 Bb6 9. Nbd2 O-O 10. h3 Ne7 11. Re1 Ng6 12. Nf1 Re8 13. Ng3 Bb7 14. d4 exd4 15. cxd4 c5 16. b3 h6 17. d5 Nd7 18. Nh2 Nde5 19. Rf1 Rc8 20. Nf5 c4 21. Kh1 cxb3 22. axb3 Ne7 23. Ng3 N7g6 24. f4 Nd7 25. Bb2 Nf6 26. Bd3 Be3 27. Bxf6 Qxf6 28. Ng4 Qd4 29. Nf5 Qb4 30. Ngxe3 Ne7 31. Qg4 g6 32. Nxh6+ Kg7 33. Nhf5+ Nxf5 34. Nxf5+ Kf8 35. Nh4 Qd4 36. Rad1 Rc3 37. Bxb5 1-0

[Event "Polish Youth G18 Championship 2023"]
[Site "Jastrzebia Gora"]
[Date "2023.03.14"]
[Round "4.18"]
[White "Gornisiewicz, Natalia"]
[Black "Sivickis, Kornelia"]
[Result "1-0"]
[ECO "A04"]
[WhiteElo "1287"]
[BlackElo "1328"]
[Annotator "NA RC COMBH"]
[PlyCount "63"]
[EventDate "2023.03.11"]
[EventType "swiss"]
[EventCountry "POL"]
[SourceTitle "playchess.com"]
[Source "ChessBase"]
[SourceQuality "1"]
[TimeControl "40/5400+30:1800+30"]

1. Nf3 {[%emt 0:00:06]} c5 {[%emt 0:00:06]} 2. c4 {[%emt 0:00:30]} Nc6 {[%emt 0:00:08]} 3. e3 {[%emt 0:00:15]} Nf6 {[%emt 0:01:09]} 4. d4 cxd4 5. exd4 {[%emt 0:02:45]} e6 {[%emt 0:00:42]} 6. Be2 {[%emt 0:02:41]} Be7 {[%emt 0:00:23]} 7. O-O {[%emt 0:00:19]} O-O {[%emt 0:01:12]} 8. d5 {[%emt 0:01:33]} exd5 {[%emt 0:01:59]} 9. cxd5 {[%emt 0:00:08]} Nb4 {[%emt 0:01:20]} 10. d6 {[%emt 0:05:52]} Bxd6 {[%emt 0:01:20]} 11. Qxd6 {[%emt 0:01:37]} Nc2 {[%emt 0:00:07]} 12. Na3 {[%emt 0:01:38]} Nxa1 {[%emt 0:00:11]} 13. Bg5 {[%emt 0:01:50]} Re8 {[%emt 0:03:03]} 14. Bc4 {[%emt 0:03:53]} h6 {[%emt 0:02:29]} 15. Bxf6 {[%emt 0:05:49]} Qxf6 {[%emt 0:00:44]} 16. Qxf6 {[%emt 0:00:06]} gxf6 {[%emt 0:00:02]} 17. Rxa1 {[%emt 0:00:24]} a6 {[%emt 0:00:08]} 18. Bd5 {[%emt 0:01:10]} Rb8 {[%emt 0:12:15]} 19. Nc4 {[%emt 0:02:49]} b5 {[%emt 0:01:19]} 20. Nd6 {[%emt 0:00:17]} Rf8 {[%emt 0:03:05]} 21. Nd4 {[%emt 0:02:44]} a5 {[%emt 0:05:13]} 22. N4f5 {[%emt 0:04:54]} Kh7 {[%emt 0:06:27]} 23. Bxf7 {[%emt 0:01:02]} Rb6 {[%emt 0:12:45]} 24. Bd5 {[%emt 0:03:15]} Ba6 {[%emt 0:02:28]} 25. Re1 {[%emt 0:01:03]} Kg6 {[%emt 0:04:57]} 26. f4 {[%emt 0:03:24]} Rxd6 {[%emt 0:21:39]} 27. Nxd6 {[%emt 0:00:08]} f5 {[%emt 0:02:42]} 28. Re7 {[%emt 0:01:57]} Rf6 {[%emt 0:02:57]} 29. Ne8 {[%emt 0:00:36]} h5 {[%emt 0:09:32]} 30. Nxf6 {[%emt 0:00:26]} Kxf6 {[%emt 0:00:10]} 31. Rf7+ {[%emt 0:00:26]} Kg6 {[%emt 0:00:12]} 32. Rxd7 {[%emt 0:00:13]} 1-0

[Event "Polish Youth G18 Championship 2023"]
[Site "Jastrzebia Gora"]
[Date "2023.03.14"]
[Round "4.19"]
[White "Tittor, Weronika"]
[Black "Lopusiewicz, Marta"]
[Result "0-1"]
[ECO "B13"]
[WhiteElo "1226"]
[BlackElo "1180"]
[Annotator "NA RC COMBH"]
[PlyCount "74"]
[EventDate "2023.03.11"]
[EventType "swiss"]
[EventCountry "POL"]
[SourceTitle "playchess.com"]
[Source "ChessBase"]
[SourceQuality "1"]
[TimeControl "40/5400+30:1800+30"]

1. e4 {[%emt 0:00:17]} c6 {[%emt 0:00:05]} 2. d4 {[%emt 0:02:17]} d5 {[%emt 0:00:08]} 3. exd5 {[%emt 0:02:47]} cxd5 {[%emt 0:00:08]} 4. Nf3 {[%emt 0:02:25]} Nc6 {[%emt 0:00:48]} 5. c3 {[%emt 0:02:18]} Bg4 {[%emt 0:02:13]} 6. Qb3 {[%emt 0:02:49]} Bxf3 {[%emt 0:01:22]} 7. Qxb7 {[%emt 0:03:56]} Qc8 {[%emt 0:00:14]} 8. Qxc8+ {[%emt 0:02:57]} Rxc8 {[%emt 0:00:07]} 9. gxf3 {[%emt 0:03:40]} Nxd4 {[%emt 0:00:07]} 10. f4 {[%emt 0:02:25]} Nc2+ {[%emt 0:03:19]} 11. Kd1 {[%emt 0:02:24]} Nxa1 {[%emt 0:00:12]} 12. Bb5+ {[%emt 0:03:27]} Kd8 {[%emt 0:00:06]} 13. Be3 {[%emt 0:01:27]} Rc7 {[%emt 0:02:55]} 14. Na3 {[%emt 0:04:23]} e6 {[%emt 0:01:07]} 15. Kd2 {[%emt 0:05:17]} Bc5 {[%emt 0:04:13]} 16. Rxa1 {[%emt 0:02:37]} Nf6 {[%emt 0:01:09]} 17. Nc2 {[%emt 0:04:52]} Bxe3+ {[%emt 0:00:29]} 18. fxe3 {[%emt 0:01:36]} Ne4+ {[%emt 0:02:20]} 19. Kd3 {[%emt 0:02:32]} Ke7 {[%emt 0:01:58]} 20. Nd4 {[%emt 0:02:10]} Rhc8 {[%emt 0:03:18]} 21. Rb1 {[%emt 0:06:43]} Nd6 {[%emt 0:02:53]} 22. Ba4 {[%emt 0:03:55]} f6 {[%emt 0:06:20]} 23. Nf3 {[%emt 0:04:07]} a5 {[%emt 0:02:41]} 24. Bb3 {[%emt 0:03:17]} Rb8 {[%emt 0:00:42]} 25. Bc2 {[%emt 0:02:25]} Nc4 {[%emt 0:01:28]} 26. b4 {[%emt 0:02:47]} Na3 {[%emt 0:01:45]} 27. Rg1 {[%emt 0:02:02]} Nxc2 {[%emt 0:04:39]} 28. Rxg7+ {[%emt 0:00:32]} Kd6 {[%emt 0:00:09]} 29. Rxc7 {[%emt 0:01:15]} Kxc7 {[%emt 0:00:45]} 30. Kxc2 {[%emt 0:00:12]} axb4 {[%emt 0:00:06]} 31. cxb4 {[%emt 0:00:17]} Rxb4 {[%emt 0:00:11]} 32. Nd4 {[%emt 0:00:14]} e5 {[%emt 0:00:32]} 33. fxe5 {[%emt 0:02:31]} fxe5 {[%emt 0:00:11]} 34. Ne6+ {[%emt 0:01:17]} Kd6 {[%emt 0:00:10]} 35. Ng5 {[%emt 0:00:23]} Rh4 {[%emt 0:02:08]} 36. Nf7+ {[%emt 0:02:03]} Ke6 {[%emt 0:00:20]} 37. Ng5+ {[%emt 0:01:04]} Kf6 {[%emt 0:00:40]} 0-1

[Event "Polish Youth G18 Championship 2023"]
[Site "Jastrzebia Gora"]
[Date "2023.03.14"]
[Round "4.20"]
[White "Bauer, Marika"]
[Black "Nagly, Malgorzata"]
[Result "1-0"]
[ECO "B40"]
[WhiteElo "1183"]
[BlackElo "1041"]
[Annotator "NA RC COMBH"]
[PlyCount "67"]
[EventDate "2023.03.11"]
[EventType "swiss"]
[EventCountry "POL"]
[SourceTitle "playchess.com"]
[Source "ChessBase"]
[SourceQuality "1"]
[TimeControl "40/5400+30:1800+30"]

1. e4 {[%emt 0:00:03]} c5 {[%emt 0:00:01]} 2. Nf3 {[%emt 0:00:07]} e6 {[%emt 0:00:09]} 3. d4 {[%emt 0:00:15]} cxd4 {[%emt 0:00:07]} 4. Nxd4 {[%emt 0:00:06]} Nf6 {[%emt 0:00:12]} 5. Nc3 {[%emt 0:00:07]} Nc6 {[%emt 0:00:11]} 6. Nb3 {[%emt 0:00:05]} Bb4 {[%emt 0:01:24]} 7. Bd3 {[%emt 0:04:28]} d5 {[%emt 0:03:37]} 8. exd5 {[%emt 0:02:04]} Nxd5 {[%emt 0:00:47]} 9. Bd2 {[%emt 0:01:21]} O-O {[%emt 0:11:50]} 10. Nxd5 {[%emt 0:03:38]} Qxd5 {[%emt 0:00:15]} 11. O-O {[%emt 0:01:31]} Bd6 {[%emt 0:06:11]} 12. Re1 {[%emt 0:06:29]} e5 {[%emt 0:08:28]} 13. Be4 {[%emt 0:03:30]} Qe6 {[%emt 0:02:01]} 14. Qh5 {[%emt 0:03:17]} f5 {[%emt 0:03:36]} 15. Bxc6 {[%emt 0:09:19]} bxc6 {[%emt 0:00:19]} 16. Bf4 {[%emt 0:13:31]} c5 {[%emt 0:13:13]} 17. Qe2 {[%emt 0:02:12]} Re8 {[%emt 0:07:35]} 18. Qd2 {[%emt 0:06:35]} Qg6 {[%emt 0:05:33]} 19. Qd5+ {[%emt 0:05:31]} Be6 {[%emt 0:04:39]} 20. Qxd6 {[%emt 0:00:55]} exf4 {[%emt 0:00:49]} 21. Qxf4 {[%emt 0:00:43]} Rab8 {[%emt 0:03:08]} 22. Rab1 {[%emt 0:04:16]} Qf6 {[%emt 0:04:12]} 23. Qe5 {[%emt 0:04:32]} Qf7 {[%emt 0:05:18]} 24. Qc3 {[%emt 0:04:31]} Rbc8 {[%emt 0:02:30]} 25. Ra1 {[%emt 0:01:53]} c4 {[%emt 0:01:48]} 26. Nd4 {[%emt 0:00:37]} Bd5 {[%emt 0:01:33]} 27. Rxe8+ {[%emt 0:01:00]} Rxe8 {[%emt 0:00:02]} 28. Re1 {[%emt 0:01:12]} Rd8 {[%emt 0:02:39]} 29. Qa5 {[%emt 0:01:24]} Rd6 {[%emt 0:01:28]} 30. Qc5 {[%emt 0:01:06]} Rg6 {[%emt 0:01:53]} 31. Qc8+ {[%emt 0:00:32]} Qf8 {[%emt 0:01:05]} 32. Re8 {[%emt 0:00:24]} Kf7 {[%emt 0:00:39]} 33. Rxf8+ {[%emt 0:00:14]} Ke7 {[%emt 0:00:14]} 34. Nxf5# {[%emt 0:00:26]} 1-0